bitfinex/quotes_SOLUSD_20251031
["timestamp","ask_amount","ask_price","bid_price","bid_amount"]
[1761928918098,4.02210267,186.69,186.63,0.25]
[1761928918099,13.15093036,186.67,186.63,0.25]
[1761928918297,13.15093036,186.67,186.63,5.60817512]
[1761928918604,13.15093036,186.67,186.63,6.28817512]
[1761928918985,13.81093036,186.67,186.63,5.60817512]
[1761928919306,4.02210267,186.67,186.63,5.60817512]
[1761928920108,4.02210267,186.67,186.64,3.36210267]
[1761928920109,0.66,186.67,186.64,3.36210267]
[1761928920474,20.592,186.7,186.66,3.36210267]
[1761928920706,14.36729556,186.69,186.63,5.60817633]
[1761928921001,14.36729556,186.69,186.63,3.61210267]
[1761928921002,7.28057054,186.68,186.63,3.61210267]
[1761928921298,3.91846787,186.67,186.63,0.25]
[1761928921600,3.36210267,186.65,186.63,0.25]
[1761928921807,3.91846787,186.64,186.63,0.25]
[1761928922003,0.66,186.65,186.63,0.25]
[1761928922306,0.66,186.66,186.63,0.25]
[1761928922492,0.66,186.65,186.63,0.25]
[1761928922688,0.94432314,186.65,186.63,0.25]
[1761928922899,30.66515083,186.63,186.62,9.70943642]
[1761928923205,37.94688947,186.63,186.62,8.15943642]
[1761928924204,34.5847868,186.63,186.62,8.15943642]
[1761928924408,37.94688947,186.63,186.62,8.15943642]
[1761928925300,42.92356827,186.63,186.62,8.15943642]
[1761928926106,24.79595911,186.63,186.62,8.15943642]
[1761928926606,13.9927868,186.63,186.62,8.15943642]
[1761928926809,22.33156827,186.63,186.62,8.15943642]
[1761928927691,27.68976362,186.63,186.62,8.15943642]
[1761928928092,22.33156827,186.63,186.62,8.15943642]
[1761928929610,42.92356827,186.63,186.62,8.15943642]
[1761928929782,22.33156827,186.63,186.62,8.15943642]
[1761928930382,13.9927868,186.63,186.62,8.15943642]
[1761928930585,3.91963597,186.63,186.62,16.49821789]
[1761928930810,3.91963597,186.63,186.62,17.20821789]
[1761928930984,9.78882769,186.67,186.62,17.20821789]
[1761928931184,9.78882769,186.65,186.62,8.15943642]
[1761928931395,20.592,186.64,186.62,8.15943642]
[1761928931709,20.592,186.63,186.62,8.15943642]
[1761928931916,24.50090286,186.63,186.62,8.15943642]
[1761928932320,34.57405369,186.63,186.62,8.15943642]
[1761928932686,3.90890286,186.63,186.62,17.20821789]
[1761928933113,7.06946397,186.73,186.62,17.20821789]
[1761928933305,9.78882769,186.7,186.65,8.33878147]
[1761928933510,0.28432314,186.68,186.63,0.71]
[1761928933696,20.592,186.67,186.65,8.33878147]
[1761928933904,3.90848054,186.66,186.65,8.33878147]
[1761928934103,3.90848054,186.66,186.65,9.04878147]
[1761928934630,2.80089393,186.73,186.65,27.80045572]
[1761928934928,23.39289393,186.73,186.68,8.33878147]
[1761928935096,2.80089393,186.73,186.7,8.33878147]
[1761928935298,0.28432314,186.71,186.66,0.71]
[1761928935623,0.14216157,186.71,186.67,8.33878147]
[1761928936128,0.14216157,186.71,186.69,8.33878147]
[1761928936825,0.28432314,186.71,186.69,8.33878147]
[1761928937029,20.87632314,186.71,186.69,8.33878147]
[1761928937526,20.87632314,186.71,186.66,6.02721551]
[1761928937827,20.87632314,186.71,186.69,8.33878147]
[1761928938126,20.87632314,186.71,186.67,0.67]
[1761928938307,20.87632314,186.71,186.68,8.33878147]
[1761928938623,0.28432314,186.71,186.68,8.33878147]
[1761928939032,30.38082769,186.72,186.69,8.33878147]
[1761928939033,20.592,186.72,186.69,8.33878147]
[1761928939350,20.592,186.72,186.71,8.33878147]
[1761928939908,20.592,186.72,186.71,9.00878147]
[1761928940119,20.592,186.72,186.71,8.33878147]
[1761928940431,20.592,186.72,186.66,5.35728116]
[1761928940602,20.592,186.72,186.7,8.33878147]
[1761928941014,1.00432314,186.71,186.65,0.67]
[1761928941210,0.28432314,186.71,186.68,8.33878147]
[1761928941414,0.72,186.79,186.7,8.33878147]
[1761928941615,9.78882769,186.78,186.65,0.67]
[1761928941920,9.78882769,186.76,186.71,8.33878147]
[1761928942104,20.592,186.74,186.68,0.67]
[1761928942306,20.592,186.74,186.71,8.33878147]
[1761928942717,20.592,186.74,186.72,8.33878147]
[1761928943835,20.592,186.74,186.72,9.00878147]
[1761928944040,20.592,186.74,186.73,8.33878147]
[1761928944412,0.14216157,186.75,186.73,8.33878147]
[1761928944822,9.93098926,186.75,186.74,9.00878147]
[1761928945037,9.93098926,186.75,186.74,8.33878147]
[1761928945411,10.07315083,186.75,186.74,8.33878147]
[1761928945609,10.07315083,186.75,186.73,8.33878147]
[1761928946307,10.07315083,186.75,186.74,8.33878147]
[1761928946510,3.91262405,186.75,186.74,8.33878147]
[1761928946714,9.78882769,186.82,186.74,9.00878147]
[1761928946939,0.72,186.83,186.68,8.33878147]
[1761928946940,9.78882769,186.8,186.79,8.33878147]
[1761928947156,13.70193515,186.8,186.75,0.67]
[1761928947444,7.1477554,186.86,186.79,2.15037764]
[1761928947445,3.51979297,186.86,186.79,2.15037764]
[1761928947626,13.70283597,186.85,186.81,2.15037764]
[1761928947821,30.38082769,186.83,186.81,2.15037764]
[1761928948017,3.91400828,186.82,186.79,0.67]
[1761928948341,3.91400828,186.81,186.79,0.67]
[1761928948636,3.91400828,186.8,186.79,0.67]
[1761928948841,10.07315083,186.83,186.79,6.02360565]
[1761928949016,3.91400828,186.82,186.79,0.67]
[1761928949216,0.28432314,186.83,186.81,2.15037764]
[1761928949424,4.19685288,186.83,186.82,2.15037764]
[1761928950321,4.19685288,186.83,186.8,0.67]
[1761928950527,4.19685288,186.83,186.79,2.15037764]
[1761928950528,0.72,186.82,186.79,2.15037764]
[1761928950840,0.72,186.82,186.78,2.15037764]
[1761928951038,0.72,186.82,186.75,5.35475234]
[1761928951235,0.72,186.82,186.78,2.15037764]
[1761928951730,0.72,186.82,186.79,2.15037764]
[1761928951941,4.19685288,186.83,186.79,2.15037764]
[1761928952110,0.72,186.82,186.78,2.15037764]
[1761928952308,20.87632314,186.82,186.81,2.15037764]
[1761928952536,3.91252974,186.82,186.76,6.02424273]
[1761928952722,24.50070126,186.81,186.8,2.15037764]
[1761928953536,24.50070126,186.81,186.8,2.82037764]
[1761928954121,24.50070126,186.81,186.8,2.15037764]
[1761928954556,2.79932966,186.88,186.8,2.85037764]
[1761928954726,13.69586142,186.87,186.85,2.15037764]
[1761928955045,9.78882769,186.84,186.76,18.74062968]
[1761928955217,9.78882769,186.84,186.77,0.7]
[1761928955417,9.93098926,186.84,186.83,2.15037764]
[1761928955640,13.97840146,186.84,186.83,2.15037764]
[1761928956523,3.90525063,186.84,186.81,0.7]
[1761928956841,3.90525063,186.84,186.83,2.15037764]
[1761928957834,3.90525063,186.84,186.83,2.85037764]
[1761928958225,20.592,186.85,186.83,2.15037764]
[1761928958416,20.592,186.85,186.84,2.15037764]
[1761928958612,24.4952959,186.85,186.84,2.15037764]
[1761928963423,10.07315083,186.82,186.78,2.15037764]
[1761928963748,0.28432314,186.82,186.8,2.15037764]
[1761928964122,0.28432314,186.82,186.81,2.15037764]
[1761928964631,9.78882769,186.83,186.8,2.15037764]
[1761928964946,20.592,186.84,186.82,2.15037764]
[1761928966248,20.592,186.84,186.75,21.98839141]
[1761928966249,13.96580468,186.83,186.79,2.15037764]
[1761928966455,10.07315083,186.83,186.79,2.15037764]
[1761928966654,3.89235106,186.82,186.79,2.15037764]
[1761928966845,4.56235106,186.82,186.79,2.15037764]
[1761928967052,3.89235106,186.82,186.79,2.15037764]
[1761928967352,3.89235106,186.82,186.79,5.47544287]
[1761928967665,10.07315083,186.81,186.79,5.47544287]
[1761928968454,10.07315083,186.81,186.78,5.47544287]
[1761928968955,10.07315083,186.81,186.79,5.47544287]
[1761928969662,10.07315083,186.81,186.78,5.47544287]
[1761928970058,3.89462153,186.8,186.78,5.47544287]
[1761928971032,3.89462153,186.8,186.78,6.17544287]
[1761928972647,3.89462153,186.8,186.78,5.47544287]
[1761928974059,3.89462153,186.8,186.76,6.05438791]
[1761928974257,3.89462153,186.8,186.76,0.7]
[1761928974440,3.89462153,186.8,186.78,5.47544287]
[1761928974956,3.89462153,186.8,186.79,5.47544287]
[1761928975544,3.89462153,186.8,186.78,5.47544287]
[1761928976438,20.592,186.78,186.77,5.47544287]
[1761928976667,24.48662153,186.78,186.77,5.47544287]
[1761928976956,24.48662153,186.78,186.77,6.17544287]
[1761928977160,24.48662153,186.78,186.75,0.7]
[1761928977333,3.89462153,186.77,186.76,5.47544287]
[1761928978661,3.89462153,186.77,186.76,6.17544287]
[1761928979063,3.89462153,186.77,186.76,11.52990849]
[1761928979572,3.89462153,186.77,186.76,6.17544287]
[1761928980555,3.89462153,186.77,186.76,11.52990849]
[1761928980756,3.89462153,186.77,186.76,5.47544287]
[1761928980964,3.89462153,186.77,186.76,6.17544287]
[1761928981152,3.89462153,186.77,186.76,0.7]
[1761928981361,3.89462153,186.77,186.76,11.52990849]
[1761928981857,3.89462153,186.77,186.76,6.05446562]
[1761928982058,20.592,186.81,186.76,24.91607255]
[1761928982260,3.92045919,186.8,186.78,5.47544287]
[1761928982448,3.92045919,186.79,186.77,0.7]
[1761928982636,20.592,186.8,186.78,5.47544287]
[1761928982841,3.92019344,186.79,186.78,5.47544287]
[1761928983040,3.92019344,186.79,186.78,5.52544287]
[1761928983349,3.92019344,186.79,186.77,5.47544287]
[1761928983544,3.92019344,186.78,186.77,5.47544287]
[1761928983746,3.92019344,186.78,186.77,5.52544287]
[1761928984547,3.92019344,186.78,186.77,5.47544287]
[1761928985063,3.92019344,186.78,186.77,11.5096218]
[1761928986160,3.92019344,186.78,186.77,6.03417893]
[1761928986365,3.92019344,186.78,186.76,16.09571585]
[1761928986366,3.92019344,186.78,186.76,5.47544287]
[1761928986552,3.92860823,186.77,186.75,10.83015819]
[1761928986752,3.92860823,186.76,186.75,10.83015819]
[1761928987261,3.92860823,186.76,186.75,11.51015819]
[1761928987466,3.92860823,186.76,186.75,8.1856039]
[1761928988678,3.92860823,186.76,186.75,16.78915822]
[1761928988853,3.92860823,186.76,186.75,8.1856039]
[1761928989283,3.92860823,186.76,186.75,7.5056039]
[1761928989459,3.92860823,186.76,186.75,5.35471532]
[1761928989648,3.92860823,186.76,186.75,7.5056039]
[1761928990563,3.92860823,186.76,186.74,7.50578982]
[1761928990747,3.92860823,186.75,186.74,7.50578982]
[1761928990948,3.92860823,186.75,186.74,2.15088858]
[1761928991143,3.92860823,186.75,186.73,5.35525671]
[1761928991351,1.00432314,186.79,186.74,2.15088858]
[1761928991670,3.93437398,186.78,186.74,2.83088858]
[1761928991888,3.93437398,186.77,186.74,2.83088858]
[1761928992069,1.00432314,186.79,186.71,2.15088858]
[1761928992070,0.28432314,186.75,186.71,2.15088858]
[1761928992249,20.592,186.73,186.68,8.18764881]
[1761928992574,3.93437398,186.72,186.7,2.15088858]
[1761928992786,3.93437398,186.71,186.7,2.15088858]
[1761928993349,3.93437398,186.71,186.7,2.83088858]
[1761928994167,3.93437398,186.71,186.7,8.18707497]
[1761928994651,20.592,186.76,186.7,21.57754095]
[1761928994964,3.93111776,186.75,186.74,2.15088858]
[1761928995166,3.93111776,186.75,186.71,0.68]
[1761928995368,20.592,186.76,186.74,2.15088858]
[1761928995577,3.93083825,186.75,186.73,2.15088858]
[1761928995754,3.93083825,186.74,186.73,2.15088858]
[1761928995951,3.93083825,186.74,186.72,5.35534703]
[1761928996171,3.93013949,186.73,186.71,2.15088858]
[1761928996357,9.78882769,186.75,186.72,2.15088858]
[1761928996558,3.92983558,186.74,186.71,2.15088858]
[1761928996784,3.92983558,186.73,186.71,2.15088858]
[1761928996956,3.92983558,186.72,186.71,2.15088858]
[1761928997357,3.92983558,186.72,186.71,2.84088858]
[1761928997561,3.92831814,186.76,186.72,5.35561268]
[1761928997757,3.92832437,186.75,186.74,2.15088858]
[1761928998456,3.92832437,186.75,186.74,2.84088858]
[1761928998884,3.92832437,186.78,186.74,11.4444429]
[1761928999059,3.92832437,186.77,186.75,0.69]
[1761928999408,3.92832437,186.76,186.75,0.69]
[1761928999583,3.92832437,186.76,186.75,6.04475234]
[1761928999785,3.92832437,186.76,186.75,5.35475234]
[1761929000158,3.92832437,186.76,186.75,7.50564092]
[1761929001470,3.92832437,186.76,186.75,8.19564092]
[1761929002068,3.92832437,186.76,186.75,7.50564092]
[1761929002678,3.92832437,186.76,186.75,5.35475234]
[1761929003426,10.07315083,186.75,186.71,0.69]
[1761929003602,3.92832437,186.74,186.69,15.54167538]
[1761929003807,3.92832437,186.73,186.7,6.04598208]
[1761929004011,3.92832437,186.72,186.7,6.04598208]
[1761929004210,12.22403941,186.75,186.7,6.04598208]
[1761929004521,6.08203777,186.74,186.7,0.69]
[1761929004687,6.08203777,186.74,186.69,5.35643987]
[1761929004688,3.93114919,186.73,186.69,5.35643987]
[1761929004889,3.93114919,186.72,186.7,0.69]
[1761929005116,3.93114919,186.71,186.7,0.69]
[1761929005793,3.93114919,186.71,186.7,6.04618639]
[1761929006701,3.93114919,186.71,186.68,6.04652526]
[1761929006918,3.93114919,186.7,186.68,8.19741384]
[1761929007103,3.93114919,186.69,186.67,6.04698879]
[1761929007417,30.66515083,186.72,186.67,9.41081319]
[1761929007418,3.93114919,186.68,186.67,9.41081319]
[1761929007595,3.93114919,186.68,186.67,6.04698879]
[1761929008738,10.07315083,186.67,186.62,13.51789642]
[1761929009012,7.29497359,186.66,186.62,13.51789642]
[1761929009220,3.93114919,186.65,186.62,14.20789642]
[1761929009806,3.93114919,186.65,186.62,13.51789642]
[1761929009998,3.3638244,186.66,186.62,13.51789642]
[1761929010197,3.92750419,186.65,186.62,14.20781701]
[1761929010500,3.92750419,186.65,186.62,13.51781701]
[1761929010823,3.92750419,186.65,186.62,17.57164141]
[1761929011004,3.3638244,186.66,186.62,13.51781701]
[1761929011191,3.9253867,186.65,186.62,14.20781701]
[1761929011394,3.9253867,186.65,186.63,4.0538244]
[1761929011715,10.07315083,186.68,186.63,4.0538244]
[1761929011903,10.07315083,186.68,186.64,5.35790827]
[1761929011904,3.92343706,186.67,186.64,5.35790827]
[1761929012100,115.45265209,186.72,186.66,3.3638244]
[1761929012320,13.71270423,186.71,186.67,3.3638244]
[1761929012622,13.71270423,186.71,186.65,0.69]
[1761929012623,3.92387654,186.7,186.66,3.3638244]
[1761929012920,3.92387654,186.69,186.68,3.3638244]
[1761929013117,106.22387654,186.71,186.68,3.3638244]
[1761929013287,3.92387654,186.7,186.68,3.3638244]
[1761929013489,3.92387654,186.69,186.68,4.0538244]
[1761929013722,3.92387654,186.69,186.64,6.04790827]
[1761929013896,110.30770094,186.68,186.64,5.35790827]
[1761929014105,3.92387654,186.67,186.64,9.41173267]
[1761929014302,3.92387654,186.67,186.65,4.0338244]
[1761929014910,3.92387654,186.67,186.64,8.72173267]
[1761929015107,3.92387654,186.67,186.64,9.39173267]
[1761929016095,3.92387654,186.67,186.64,6.02790827]
[1761929016410,3.92387654,186.67,186.64,8.72173267]
[1761929016613,3.92387654,186.67,186.65,4.0338244]
[1761929016805,3.92387654,186.67,186.65,3.3638244]
[1761929017602,3.92387654,186.67,186.66,0.67]
[1761929017919,3.92387654,186.67,186.66,6.02733419]
[1761929018229,3.92387654,186.67,186.66,5.35733419]
[1761929018595,3.92387654,186.68,186.66,5.35733419]
[1761929018791,3.92387654,186.67,186.66,5.35733419]
[1761929019020,3.3638244,186.71,186.67,0.67]
[1761929019197,3.91731719,186.7,186.67,4.0338244]
[1761929019399,3.91731719,186.69,186.67,4.0338244]
[1761929019627,4.0438244,186.72,186.67,0.67]
[1761929019928,3.91737009,186.71,186.7,3.3638244]
[1761929020297,3.91737009,186.71,186.68,14.06179848]
[1761929020298,13.15265209,186.73,186.68,4.0338244]
[1761929020498,3.91737009,186.72,186.68,9.39050533]
[1761929020703,3.91737009,186.72,186.69,3.3638244]
[1761929020903,3.91737009,186.72,186.69,4.0338244]
[1761929021402,3.91737009,186.72,186.7,3.3638244]
[1761929021705,3.91737009,186.71,186.7,0.67]
[1761929021941,3.91737009,186.73,186.69,8.72010925]
[1761929022116,3.91737009,186.72,186.69,5.35628485]
[1761929022520,3.91737009,186.72,186.7,4.0338244]
[1761929022700,3.91737009,186.71,186.7,4.0338244]
[1761929023330,3.91737009,186.71,186.69,18.74746809]
[1761929023331,7.28119449,186.73,186.69,5.35628485]
[1761929023512,7.56551763,186.72,186.69,5.35628485]
[1761929023716,3.91737009,186.71,186.69,5.35628485]
[1761929023916,3.91737009,186.71,186.68,5.35676023]
[1761929024605,3.91737009,186.71,186.68,6.02676023]
[1761929024998,3.91737009,186.71,186.68,5.35676023]
[1761929025927,3.91737009,186.71,186.67,5.35704719]
[1761929026116,7.28119449,186.71,186.67,5.35704719]
[1761929026318,3.91737009,186.7,186.67,5.35704719]
[1761929026825,3.91737009,186.69,186.66,5.35727083]
[1761929027010,102.3,186.68,186.66,5.35727083]
[1761929027214,102.3,186.68,186.66,6.02727083]
[1761929027529,102.3,186.68,186.64,5.35790827]
[1761929027530,3.91718602,186.67,186.64,5.35790827]
[1761929027826,106.21718602,186.67,186.64,5.35790827]
[1761929028030,102.3,186.67,186.64,5.35790827]
[1761929028336,102.98,186.67,186.64,5.35790827]
[1761929028626,105.6638244,186.67,186.64,5.35790827]
[1761929028924,102.3,186.67,186.64,5.35790827]
[1761929029238,102.3,186.67,186.62,25.58881422]
[1761929029239,13.15265209,186.65,186.62,8.15943642]
[1761929029420,7.56707483,186.64,186.62,8.15943642]
[1761929029734,7.28275169,186.63,186.62,8.15943642]
[1761929029909,7.28128564,186.63,186.62,8.15943642]
[1761929030512,3.91746124,186.63,186.62,8.15943642]
[1761929030726,3.91746124,186.63,186.62,8.82943642]
[1761929030934,3.91746124,186.63,186.62,8.15943642]
[1761929031118,3.91746124,186.63,186.62,13.51791889]
[1761929031315,4.20178438,186.64,186.62,13.51791889]
[1761929031521,3.91746124,186.63,186.62,14.18791889]
[1761929031834,4.20036834,186.64,186.62,14.18791889]
[1761929032021,4.20036834,186.64,186.62,8.15943642]
[1761929032422,7.56419274,186.64,186.62,8.15943642]
[1761929032621,3.9160452,186.63,186.62,8.15943642]
[1761929033223,27.87107617,186.63,186.62,8.15943642]
[1761929033430,28.55107617,186.63,186.62,8.15943642]
[1761929033927,27.87107617,186.63,186.62,8.15943642]
[1761929034130,24.50725177,186.63,186.62,8.15943642]
[1761929034725,37.944227,186.63,186.62,8.15943642]
[1761929036235,38.624227,186.63,186.62,8.15943642]
[1761929037840,3.91525177,186.63,186.62,8.15943642]
[1761929038035,34.29607946,186.64,186.62,8.15943642]
[1761929038234,3.91525177,186.63,186.62,8.15943642]
[1761929038627,30.38082769,186.64,186.62,8.15943642]
[1761929038825,3.3638244,186.63,186.62,8.15943642]
[1761929039741,33.74465209,186.64,186.62,8.15943642]
[1761929039938,30.38082769,186.64,186.62,8.15943642]
[1761929040241,34.70897523,186.63,186.62,8.15943642]
[1761929040538,54.82237444,186.63,186.62,8.15943642]
[1761929041032,54.14237444,186.63,186.62,8.15943642]
[1761929041626,54.82237444,186.63,186.62,8.15943642]
[1761929043028,51.45855004,186.63,186.62,8.15943642]
[1761929043345,54.82237444,186.63,186.62,8.15943642]
[1761929044749,54.14237444,186.63,186.62,8.15943642]
[1761929044959,24.50533155,186.63,186.62,8.15943642]
[1761929045125,24.50533155,186.63,186.62,8.82943642]
[1761929045546,24.50533155,186.63,186.62,8.15943642]
[1761929045730,27.86915595,186.63,186.62,8.15943642]
[1761929046045,24.50533155,186.63,186.62,8.15943642]
[1761929046351,24.50533155,186.63,186.62,14.18791889]
[1761929046537,24.50533155,186.63,186.62,8.82943642]
[1761929046724,24.50533155,186.63,186.62,14.18791889]
[1761929047045,24.50533155,186.63,186.62,8.15943642]
[1761929047551,24.50533155,186.63,186.62,13.51791889]
[1761929047737,24.50533155,186.63,186.62,8.15943642]
[1761929048440,37.94230678,186.63,186.62,8.15943642]
[1761929049636,38.60230678,186.63,186.62,8.15943642]
[1761929049964,18.01030678,186.63,186.62,8.15943642]
[1761929050148,38.60230678,186.63,186.62,8.15943642]
[1761929050455,18.01030678,186.63,186.62,8.15943642]
[1761929051234,38.60230678,186.63,186.62,8.15943642]
[1761929051441,18.01030678,186.63,186.62,8.15943642]
[1761929052348,17.35030678,186.63,186.62,8.15943642]
[1761929052929,18.01030678,186.63,186.62,8.15943642]
[1761929053345,30.38082769,186.59,186.54,0.1]
[1761929053543,24.24014754,186.55,186.54,0.1]
[1761929053742,28.15347909,186.55,186.54,0.1]
[1761929054067,28.15347909,186.55,186.52,0.1]
[1761929054068,10.07315083,186.54,186.52,0.1]
[1761929054267,13.15265209,186.57,186.52,0.1]
[1761929054268,37.94230678,186.53,186.52,0.1]
[1761929054433,37.94230678,186.53,186.25,50.0]
[1761929054434,0.28432314,186.49,186.42,0.67]
[1761929054633,20.592,186.46,186.42,3.3638244]
[1761929054835,0.28432314,186.48,186.45,8.72701039]
[1761929055057,20.592,186.51,186.47,3.3638244]
[1761929055253,10.07315083,186.54,186.45,5.36318599]
[1761929055254,10.07315083,186.54,186.49,3.3638244]
[1761929055436,24.50227965,186.53,186.51,3.3638244]
[1761929055640,3.3638244,186.58,186.52,4.0338244]
[1761929055847,3.91059056,186.57,186.53,3.3638244]
[1761929056039,3.91059056,186.57,186.45,45.58844744]
[1761929056040,17.06324265,186.56,186.51,3.3638244]
[1761929056244,9.78882769,186.56,186.51,3.3638244]
[1761929056457,9.78882769,186.56,186.52,0.67]
[1761929056650,7.55746924,186.55,186.52,0.67]
[1761929056855,3.9093217,186.54,186.52,0.67]
[1761929057067,7.2731461,186.54,186.48,4.0338244]
[1761929057243,3.3638244,186.53,186.48,3.3638244]
[1761929057444,3.3638244,186.53,186.49,0.67]
[1761929057640,0.28432314,186.55,186.49,4.0338244]
[1761929057844,9.78882769,186.54,186.5,3.3638244]
[1761929058044,3.3638244,186.54,186.5,0.67]
[1761929058270,3.3638244,186.53,186.51,0.67]
[1761929058569,3.3638244,186.54,186.51,0.67]
[1761929058948,23.9558244,186.55,186.52,5.36135535]
[1761929059568,3.3638244,186.54,186.47,3.3638244]
[1761929059778,102.3,186.53,186.52,0.66]
[1761929059954,23.9558244,186.55,186.52,0.66]
[1761929060668,20.592,186.55,186.52,0.66]
[1761929060854,102.3,186.57,186.52,0.66]
[1761929061171,20.592,186.58,186.54,3.3638244]
[1761929061369,3.90650703,186.57,186.55,0.66]
[1761929061558,20.592,186.58,186.55,0.66]
[1761929061945,23.9558244,186.58,186.55,0.66]
[1761929062145,23.9558244,186.58,186.53,18.76373773]
[1761929062475,10.07315083,186.61,186.55,4.0238244]
[1761929062476,3.50598597,186.61,186.55,4.0238244]
[1761929062643,3.90683423,186.6,186.56,4.0238244]
[1761929062970,3.90683423,186.6,186.58,5.35963125]
[1761929063272,3.3638244,186.64,186.58,22.12253379]
[1761929063479,7.5564468,186.63,186.59,0.66]
[1761929063656,3.90829926,186.62,186.59,0.66]
[1761929063859,3.3638244,186.64,186.59,0.66]
[1761929064061,3.90834458,186.63,186.6,3.3638244]
[1761929064261,3.90834458,186.62,186.61,0.66]
[1761929064873,3.90834458,186.64,186.61,0.66]
[1761929065054,3.90834458,186.64,186.61,6.01862134]
[1761929065461,3.90834458,186.64,186.62,0.66]
[1761929066058,3.90834458,186.63,186.62,4.0238244]
[1761929066493,20.592,186.66,186.62,4.0238244]
[1761929066655,3.91244475,186.65,186.63,0.66]
[1761929067055,3.91244475,186.65,186.63,6.01811343]
[1761929067466,3.91244475,186.65,186.63,0.66]
[1761929067686,3.91244475,186.65,186.6,13.3976164]
[1761929067687,3.3638244,186.64,186.6,6.01891289]
[1761929067854,3.91244475,186.63,186.61,0.66]
[1761929068674,3.91244475,186.63,186.61,4.0238244]
[1761929068977,102.3,186.65,186.61,4.0238244]
[1761929069189,3.91528809,186.64,186.63,5.35819535]
[1761929069967,3.91528809,186.64,186.63,6.01819535]
[1761929070166,3.91528809,186.64,186.63,8.1720394]
[1761929070681,22.74584405,186.69,186.63,8.1720394]
[1761929070871,3.91760299,186.68,186.64,0.66]
[1761929071065,3.91760299,186.67,186.64,0.66]
[1761929071270,3.91760299,186.66,186.64,0.66]
[1761929071577,3.91760299,186.65,186.64,0.66]
[1761929071780,10.07315083,186.67,186.64,0.66]
[1761929071956,3.91760299,186.66,186.64,0.66]
[1761929072158,3.91760299,186.65,186.64,0.66]
[1761929072578,3.91760299,186.65,186.64,6.01790827]
[1761929072778,3.91760299,186.67,186.64,6.01790827]
[1761929073081,3.91760299,186.66,186.65,0.66]
[1761929073661,3.91760299,186.66,186.64,5.35790827]
[1761929073862,3.91760299,186.65,186.64,6.01790827]
[1761929074076,3.91760299,186.67,186.64,6.01790827]
[1761929074380,3.91760299,186.66,186.64,6.01790827]
[1761929074562,3.91760299,186.65,186.64,8.19175232]
[1761929074766,3.91760299,186.65,186.64,7.51175232]
[1761929074968,3.92208655,186.67,186.65,0.68]
[1761929075167,3.92209028,186.66,186.65,0.68]
[1761929075765,3.92128266,186.66,186.64,7.51175232]
[1761929075973,3.92128266,186.65,186.64,6.03790827]
[1761929076177,6.07512671,186.65,186.6,6.0390568]
[1761929076377,3.92128266,186.64,186.6,7.51290085]
[1761929076579,3.92128266,186.63,186.61,0.68]
[1761929076781,3.92128266,186.62,186.61,0.68]
[1761929076979,3.92128266,186.64,186.61,0.68]
[1761929077283,3.92128266,186.63,186.61,0.68]
[1761929077586,3.92128266,186.62,186.6,7.51290085]
[1761929077888,3.92128266,186.61,186.6,7.51290085]
[1761929078186,3.92128266,186.64,186.6,7.51290085]
[1761929078390,3.92128266,186.63,186.6,7.51290085]
[1761929078576,3.92128266,186.62,186.61,0.68]
[1761929078766,3.92128266,186.64,186.61,0.68]
[1761929078964,3.92128266,186.63,186.6,5.3590568]
[1761929079199,3.92128266,186.62,186.61,0.68]
[1761929079385,3.92128266,186.63,186.61,0.68]
[1761929079693,13.53071908,186.62,186.61,0.68]
[1761929080074,13.53071908,186.62,186.6,5.3590568]
[1761929080280,3.92128266,186.61,186.59,2.15384405]
[1761929080490,3.92128266,186.61,186.54,45.56597836]
[1761929080794,3.92128266,186.61,186.58,2.15384405]
[1761929080995,3.92128266,186.61,186.59,2.15384405]
[1761929081291,3.92128266,186.61,186.55,0.68]
[1761929081481,3.92128266,186.61,186.59,2.15384405]
[1761929081681,3.92128266,186.61,186.6,0.68]
[1761929082085,3.92128266,186.61,186.54,18.76273184]
[1761929082281,3.92128266,186.6,186.57,5.35991852]
[1761929082478,3.92128266,186.59,186.57,5.35991852]
[1761929082776,3.92128266,186.58,186.57,6.03991852]
[1761929082975,11.76328047,186.62,186.58,0.68]
[1761929083173,3.91745001,186.61,186.58,0.68]
[1761929083485,3.91745001,186.6,186.58,2.83384405]
[1761929083686,3.91745001,186.59,186.58,2.83384405]
[1761929083869,3.91815128,186.61,186.59,0.68]
[1761929084071,3.91820852,186.6,186.59,0.68]
[1761929084389,3.91820852,186.6,186.59,6.03934401]
[1761929084576,9.60943642,186.62,186.59,0.68]
[1761929084577,3.91820852,186.61,186.59,0.68]
[1761929084897,3.91820852,186.6,186.59,0.68]
[1761929085098,3.91820852,186.61,186.59,0.68]
[1761929085277,3.91820852,186.6,186.59,0.68]
[1761929085596,3.91820852,186.6,186.59,6.03934401]